[Event "Groningen Festival 2019-B"]
[Site "Groningen"]
[Date "2019.12.27"]
[Round "6.4"]
[White "De Winter, Arthur"]
[Black "Neuendorf, Max"]
[Result "0-1"]
[ECO "B32"]
[WhiteElo "1932"]
[BlackElo "1994"]
[Annotator "NA"]
[PlyCount "104"]
[EventDate "2019.12.15"]
[EventType "swiss"]
[EventCountry "NED"]
[SourceTitle "playchess.com"]
[Source "ChessBase"]
[SourceQuality "1"]
[TimeControl "40/5400+30:1800+30"]

1. e4 {[%emt 0:00:00]} c5 {[%emt 0:00:25]} 2. Nf3 {[%emt 0:00:00]} Nc6 {[%emt 0:00:07]} 3. d4 {[%emt 0:00:00]} cxd4 {[%emt 0:00:08]} 4. Nxd4 {[%emt 0:00:00]} e5 {[%emt 0:00:07]} 5. Nb5 {[%emt 0:00:01]} d6 {[%emt 0:00:11]} 6. N1c3 {[%emt 0:00:12]} a6 {[%emt 0:00:09]} 7. Na3 {[%emt 0:00:03]} Be7 {[%emt 0:00:05]} 8. Nd5 {[%emt 0:02:16]} Nf6 {[%emt 0:00:10]} 9. Be3 {[%emt 0:02:47]} Nxd5 {[%emt 0:01:15]} 10. exd5 {[%emt 0:00:10]} Nd4 {[%emt 0:00:18]} 11. Bxd4 {[%emt 0:07:58]} exd4 {[%emt 0:00:16]} 12. Qxd4 {[%emt 0:01:33]} O-O {[%emt 0:00:20]} 13. O-O-O {[%emt 0:10:32]} Bf6 {[%emt 0:01:08]} 14. Qd2 {[%emt 0:01:17]} b5 {[%emt 0:00:58]} 15. Bd3 {[%emt 0:07:22]} Rb8 {[%emt 0:01:24]} 16. Kb1 {[%emt 0:01:32]} Bd7 {[%emt 0:00:36]} 17. c3 {[%emt 0:07:16]} a5 {[%emt 0:01:37]} 18. Nc2 {[%emt 0:01:10]} g6 {[%emt 0:00:19]} 19. h4 {[%emt 0:05:02]} h5 {[%emt 0:07:28]} 20. Qf4 {[%emt 0:05:24]} Bg7 {[%emt 0:14:51]} 21. a3 {[%emt 0:07:40]} b4 {[%emt 0:02:46]} 22. axb4 {[%emt 0:01:32]} Ba4 {[%emt 0:00:35]} 23. Rhe1 {[%emt 0:06:13]} Bxc2+ {[%emt 0:04:50]} 24. Bxc2 {[%emt 0:00:07]} axb4 {[%emt 0:01:22]} 25. cxb4 {[%emt 0:00:25]} Qb6 {[%emt 0:09:01]} 26. Rd3 {[%emt 0:12:05]} Qxb4 {[%emt 0:10:14]} 27. Qxb4 {[%emt 0:00:29]} Rxb4 {[%emt 0:00:04]} 28. Rb3 {[%emt 0:01:26]} Rfb8 {[%emt 0:07:41]} 29. Re8+ {[%emt 0:08:16]} Rxe8 {[%emt 0:00:06]} 30. Rxb4 {[%emt 0:00:03]} Re1+ {[%emt 0:00:13]} 31. Ka2 {[%emt 0:00:05]} Re2 {[%emt 0:00:11]} 32. Rc4 {[%emt 0:02:44]} Rxf2 {[%emt 0:00:54]} 33. b4 {[%emt 0:00:04]} Rd2 {[%emt 0:03:45]} 34. b5 {[%emt 0:07:57]} Rxd5 {[%emt 0:01:09]} 35. Rb4 {[%emt 0:00:54]} Rd4 {[%emt 0:07:11]} 36. Kb3 {[%emt 0:01:58]} Rxb4+ {[%emt 0:08:41]} 37. Kxb4 {[%emt 0:00:05]} Bd4 {[%emt 0:00:32]} 38. Kc4 {[%emt 0:00:22]} Bf2 {[%emt 0:03:39]} 39. Kd5 {[%emt 0:00:12]} Bxh4 {[%emt 0:00:09]} 40. b6 {[%emt 0:00:48]} Bf2 {[%emt 0:00:31]} 41. b7 {[%emt 0:30:05]} Ba7 {[%emt 0:30:14]} 42. Kxd6 {[%emt 0:00:07]} f5 {[%emt 0:02:41]} 43. Kc7 {[%emt 0:01:39]} Kg7 {[%emt 0:00:14]} 44. b8=Q {[%emt 0:00:24]} Bxb8+ {[%emt 0:00:05]} 45. Kxb8 {[%emt 0:00:04]} Kf6 {[%emt 0:00:54]} 46. Kc7 {[%emt 0:00:33]} Ke5 {[%emt 0:00:28]} 47. Kd7 {[%emt 0:00:00]} g5 {[%emt 0:00:00]} 48. Ke7 {[%emt 0:00:00]} f4 {[%emt 0:00:00]} 49. Kf7 {[%emt 0:00:00]} g4 {[%emt 0:00:00]} 50. Kg6 {[%emt 0:00:00]} h4 {[%emt 0:00:00]} 51. Kg5 {[%emt 0:00:00]} h3 {[%emt 0:00:00]} 52. gxh3 {[%emt 0:00:00]} g3 {[%emt 0:00:00]} 0-1

[Event "Groningen Festival 2019-B"]
[Site "Groningen"]
[Date "2019.12.27"]
[Round "6.6"]
[White "De Vries, Leon"]
[Black "Van der Meer, Henk"]
[Result "1-0"]
[ECO "E61"]
[WhiteElo "1934"]
[BlackElo "1785"]
[Annotator "NA"]
[PlyCount "85"]
[EventDate "2019.12.15"]
[EventType "swiss"]
[EventCountry "NED"]
[SourceTitle "playchess.com"]
[Source "ChessBase"]
[SourceQuality "1"]
[TimeControl "40/5400+30:1800+30"]

1. d4 {[%emt 0:00:00]} Nf6 {[%emt 0:00:00]} 2. c4 {[%emt 0:00:00]} g6 {[%emt 0:00:27]} 3. Nc3 {[%emt 0:00:05]} Bg7 {[%emt 0:00:20]} 4. Nf3 {[%emt 0:00:29]} O-O {[%emt 0:00:23]} 5. Bg5 {[%emt 0:00:29]} d6 {[%emt 0:00:34]} 6. e3 {[%emt 0:00:14]} Nbd7 {[%emt 0:02:55]} 7. Be2 {[%emt 0:02:11]} a6 {[%emt 0:03:24]} 8. Qc2 {[%emt 0:01:12]} Rb8 {[%emt 0:06:37]} 9. O-O {[%emt 0:05:17]} c6 {[%emt 0:06:00]} 10. b4 {[%emt 0:05:36]} Re8 {[%emt 0:13:29]} 11. Rfd1 {[%emt 0:04:46]} Nf8 {[%emt 0:04:44]} 12. h3 {[%emt 0:04:21]} h6 {[%emt 0:07:20]} 13. Bh4 {[%emt 0:00:53]} g5 {[%emt 0:01:20]} 14. Bg3 {[%emt 0:00:11]} Ng6 {[%emt 0:01:12]} 15. Bd3 {[%emt 0:07:48]} Nf8 {[%emt 0:09:34]} 16. Nd2 {[%emt 0:04:49]} Be6 {[%emt 0:04:24]} 17. Bf5 {[%emt 0:04:46]} Qd7 {[%emt 0:01:31]} 18. Bxe6 {[%emt 0:01:05]} Qxe6 {[%emt 0:02:40]} 19. Nce4 {[%emt 0:09:46]} Rbc8 {[%emt 0:01:04]} 20. Nxf6+ {[%emt 0:03:10]} Qxf6 {[%emt 0:01:08]} 21. Rab1 {[%emt 0:06:38]} Ng6 {[%emt 0:03:43]} 22. a4 {[%emt 0:02:43]} h5 {[%emt 0:01:09]} 23. b5 {[%emt 0:02:19]} axb5 {[%emt 0:01:01]} 24. axb5 {[%emt 0:00:27]} Qe6 {[%emt 0:05:05]} 25. Qe4 {[%emt 0:06:26]} Qd7 {[%emt 0:01:56]} 26. bxc6 {[%emt 0:04:34]} bxc6 {[%emt 0:00:15]} 27. Nf3 {[%emt 0:02:40]} f5 {[%emt 0:08:13]} 28. Qc2 {[%emt 0:01:44]} h4 {[%emt 0:01:32]} 29. Bh2 {[%emt 0:00:32]} g4 {[%emt 0:02:13]} 30. hxg4 {[%emt 0:01:19]} fxg4 {[%emt 0:01:56]} 31. Qxg6 {[%emt 0:00:25]} gxf3 {[%emt 0:00:55]} 32. gxf3 {[%emt 0:02:55]} Rf8 {[%emt 0:00:35]} 33. Qg4 {[%emt 0:01:15]} e6 {[%emt 0:02:30]} 34. Bf4 {[%emt 0:06:17]} Rf6 {[%emt 0:02:57]} 35. Kh2 {[%emt 0:02:22]} Rcf8 {[%emt 0:01:14]} 36. Rg1 {[%emt 0:02:08]} Kh7 {[%emt 0:01:49]} 37. d5 {[%emt 0:01:20]} cxd5 {[%emt 0:00:17]} 38. cxd5 {[%emt 0:00:08]} Qe7 {[%emt 0:00:19]} 39. Bg5 {[%emt 0:00:51]} exd5 {[%emt 0:01:42]} 40. Bxf6 {[%emt 0:02:23]} Rxf6 {[%emt 0:00:22]} 41. Qh5+ {[%emt 0:31:13]} Bh6 {[%emt 0:06:00]} 42. Qxd5 {[%emt 0:00:04]} Qe5+ {[%emt 0:00:16]} 43. Qxe5 1-0

[Event "Groningen Festival 2019-B"]
[Site "Groningen"]
[Date "2019.12.28"]
[Round "7.1"]
[White "Muller, Kenneth"]
[Black "Novotny, David"]
[Result "0-1"]
[ECO "D00"]
[WhiteElo "1806"]
[BlackElo "1810"]
[Annotator "NA"]
[PlyCount "64"]
[EventDate "2019.12.15"]
[EventType "swiss"]
[EventCountry "NED"]
[SourceTitle "playchess.com"]
[Source "ChessBase"]
[SourceQuality "1"]
[TimeControl "40/5400+30:1800+30"]

1. d4 {[%emt 0:09:57]} Nf6 {[%emt 0:00:00]} 2. Nc3 {[%emt 0:00:09]} d5 {[%emt 0:00:20]} 3. Bf4 {[%emt 0:00:18]} Bf5 {[%emt 0:01:55]} 4. f3 {[%emt 0:06:13]} e6 {[%emt 0:01:28]} 5. g4 {[%emt 0:00:29]} Bg6 {[%emt 0:00:31]} 6. h4 {[%emt 0:00:28]} h5 {[%emt 0:00:27]} 7. g5 {[%emt 0:00:08]} Nfd7 {[%emt 0:00:18]} 8. e3 {[%emt 0:00:23]} Bd6 {[%emt 0:01:06]} 9. Bxd6 {[%emt 0:01:01]} cxd6 {[%emt 0:00:08]} 10. Nge2 {[%emt 0:00:32]} Nc6 {[%emt 0:01:47]} 11. Nf4 {[%emt 0:03:16]} Bf5 {[%emt 0:00:15]} 12. Bd3 {[%emt 0:06:47]} Ne7 {[%emt 0:03:47]} 13. Qd2 {[%emt 0:07:01]} Bxd3 {[%emt 0:08:59]} 14. Qxd3 {[%emt 0:02:46]} g6 {[%emt 0:02:13]} 15. e4 {[%emt 0:02:35]} dxe4 {[%emt 0:04:34]} 16. fxe4 {[%emt 0:01:18]} a6 {[%emt 0:02:33]} 17. Rf1 {[%emt 0:06:13]} b5 {[%emt 0:06:50]} 18. Qf3 {[%emt 0:06:58]} Rf8 {[%emt 0:02:24]} 19. O-O-O {[%emt 0:05:40]} Qa5 {[%emt 0:09:58]} 20. Kb1 {[%emt 0:06:40]} b4 {[%emt 0:09:31]} 21. Nce2 {[%emt 0:01:57]} Rc8 {[%emt 0:09:41]} 22. Qb3 {[%emt 0:06:41]} Qb5 {[%emt 0:03:49]} 23. Rd3 {[%emt 0:03:05]} Nc6 {[%emt 0:09:41]} 24. Nxe6 {[%emt 0:09:02]} Na5 {[%emt 0:12:41]} 25. Ng7+ {[%emt 0:02:53]} Ke7 {[%emt 0:05:03]} 26. Qd5 {[%emt 0:01:06]} Nb6 {[%emt 0:01:30]} 27. Rxf7+ {[%emt 0:06:06]} Rxf7 {[%emt 0:00:08]} 28. Qe6+ {[%emt 0:00:03]} Kf8 {[%emt 0:00:22]} 29. Qxg6 {[%emt 0:02:17]} Qxd3 {[%emt 0:01:57]} 30. Qxd6+ {[%emt 0:01:57]} Kg8 {[%emt 0:00:17]} 31. Qd8+ {[%emt 0:00:56]} Rxd8 {[%emt 0:00:31]} 32. cxd3 {[%emt 0:00:05]} Kxg7 {[%emt 0:00:31]} 0-1

[Event "Groningen Festival 2019-B"]
[Site "Groningen"]
[Date "2019.12.28"]
[Round "7.2"]
[White "Neuendorf, Max"]
[Black "Akotchik, Victor"]
[Result "0-1"]
[ECO "B01"]
[WhiteElo "1994"]
[BlackElo "2095"]
[Annotator "NA"]
[PlyCount "92"]
[EventDate "2019.12.15"]
[EventType "swiss"]
[EventCountry "NED"]
[SourceTitle "playchess.com"]
[Source "ChessBase"]
[SourceQuality "1"]
[TimeControl "40/5400+30:1800+30"]

1. e4 {[%emt 0:00:00]} d5 {[%emt 0:00:00]} 2. exd5 {[%emt 0:01:14]} Nf6 {[%emt 0:00:00]} 3. d4 {[%emt 0:00:10]} Nxd5 {[%emt 0:00:09]} 4. Be2 {[%emt 0:00:20]} Bf5 {[%emt 0:08:23]} 5. Nf3 {[%emt 0:02:01]} e6 {[%emt 0:00:20]} 6. a3 {[%emt 0:00:10]} Be7 {[%emt 0:01:07]} 7. c4 {[%emt 0:00:24]} Nb6 {[%emt 0:03:40]} 8. Nc3 {[%emt 0:03:01]} Bf6 {[%emt 0:20:02]} 9. Be3 {[%emt 0:07:38]} O-O {[%emt 0:12:01]} 10. O-O {[%emt 0:00:49]} Nc6 {[%emt 0:02:29]} 11. b4 {[%emt 0:31:42]} Bg4 {[%emt 0:10:53]} 12. Ne4 {[%emt 0:10:07]} Bxf3 {[%emt 0:02:48]} 13. Nxf6+ {[%emt 0:00:08]} Qxf6 {[%emt 0:00:19]} 14. Bxf3 {[%emt 0:00:31]} Nxc4 {[%emt 0:01:56]} 15. Qd3 {[%emt 0:12:44]} Nb6 {[%emt 0:05:06]} 16. Rac1 {[%emt 0:06:42]} Qe7 {[%emt 0:06:39]} 17. Bxc6 {[%emt 0:05:28]} bxc6 {[%emt 0:00:05]} 18. d5 {[%emt 0:00:11]} Rfd8 {[%emt 0:01:27]} 19. Bxb6 {[%emt 0:03:40]} cxb6 {[%emt 0:04:11]} 20. Rxc6 {[%emt 0:00:14]} Rxd5 {[%emt 0:00:05]} 21. Qc3 {[%emt 0:01:21]} Rad8 {[%emt 0:00:27]} 22. h3 {[%emt 0:02:04]} Rd3 {[%emt 0:01:48]} 23. Qc1 {[%emt 0:00:34]} h6 {[%emt 0:00:38]} 24. Rc7 {[%emt 0:00:51]} R3d7 {[%emt 0:00:19]} 25. Rc6 {[%emt 0:01:01]} Qg5 {[%emt 0:05:33]} 26. Qxg5 {[%emt 0:07:02]} hxg5 {[%emt 0:00:04]} 27. a4 {[%emt 0:00:37]} Kf8 {[%emt 0:03:31]} 28. Ra1 {[%emt 0:01:59]} Rd1+ {[%emt 0:05:47]} 29. Rxd1 {[%emt 0:00:06]} Rxd1+ {[%emt 0:00:08]} 30. Kh2 {[%emt 0:00:04]} Ke7 {[%emt 0:00:16]} 31. Rc7+ {[%emt 0:01:19]} Rd7 {[%emt 0:00:03]} 32. Rc6 {[%emt 0:00:08]} Kd8 {[%emt 0:01:18]} 33. Kg3 {[%emt 0:01:23]} Rd4 {[%emt 0:00:16]} 34. a5 {[%emt 0:00:37]} Rxb4 {[%emt 0:00:09]} 35. axb6 {[%emt 0:00:07]} axb6 {[%emt 0:00:23]} 36. Rc3 {[%emt 0:00:36]} Kd7 {[%emt 0:00:54]} 37. Ra3 {[%emt 0:00:17]} Rc4 {[%emt 0:00:26]} 38. Kf3 {[%emt 0:00:55]} Kd6 {[%emt 0:02:22]} 39. Ke2 {[%emt 0:00:34]} Rc7 {[%emt 0:01:58]} 40. Rg3 {[%emt 0:00:27]} Rc2+ {[%emt 0:00:36]} 41. Ke1 {[%emt 0:30:13]} f6 {[%emt 0:03:01]} 42. Rb3 {[%emt 0:00:00]} Kc5 {[%emt 0:07:45]} 43. Re3 {[%emt 0:00:00]} e5 {[%emt 0:01:33]} 44. Rd3 {[%emt 0:00:00]} b5 {[%emt 0:02:45]} 45. Rd7 {[%emt 0:00:00]} Kc4 {[%emt 0:00:14]} 46. Rxg7 {[%emt 0:00:00]} b4 {[%emt 0:00:16]} 0-1

[Event "Groningen Festival 2019-B"]
[Site "Groningen"]
[Date "2019.12.28"]
[Round "7.3"]
[White "Torenbosch, Jorn"]
[Black "De Vries, Leon"]
[Result "0-1"]
[ECO "B20"]
[WhiteElo "1821"]
[BlackElo "1934"]
[Annotator "NA"]
[PlyCount "100"]
[EventDate "2019.12.15"]
[EventType "swiss"]
[EventCountry "NED"]
[SourceTitle "playchess.com"]
[Source "ChessBase"]
[SourceQuality "1"]
[TimeControl "40/5400+30:1800+30"]

1. e4 {[%emt 0:00:00]} c5 {[%emt 0:00:00]} 2. b4 {[%emt 0:00:00]} cxb4 {[%emt 0:00:47]} 3. a3 {[%emt 0:01:49]} d5 {[%emt 0:01:32]} 4. exd5 {[%emt 0:00:10]} Qxd5 {[%emt 0:00:16]} 5. Nf3 {[%emt 0:00:09]} e5 {[%emt 0:00:43]} 6. axb4 {[%emt 0:00:25]} Bxb4 {[%emt 0:00:31]} 7. Na3 {[%emt 0:00:05]} Nf6 {[%emt 0:00:54]} 8. Nb5 {[%emt 0:02:07]} O-O {[%emt 0:02:14]} 9. c3 {[%emt 0:02:52]} Bc5 {[%emt 0:02:20]} 10. Be2 {[%emt 0:03:49]} Bd7 {[%emt 0:05:59]} 11. Nc7 {[%emt 0:10:33]} Bxf2+ {[%emt 0:05:01]} 12. Kf1 {[%emt 0:00:10]} Qd6 {[%emt 0:02:18]} 13. Nxa8 {[%emt 0:00:41]} Bc5 {[%emt 0:00:12]} 14. d4 {[%emt 0:01:47]} exd4 {[%emt 0:02:24]} 15. cxd4 {[%emt 0:00:34]} Bb4 {[%emt 0:00:29]} 16. Rxa7 {[%emt 0:05:59]} Nc6 {[%emt 0:09:55]} 17. Ra1 {[%emt 0:05:26]} Nd5 {[%emt 0:00:35]} 18. Bc4 {[%emt 0:05:27]} Re8 {[%emt 0:06:15]} 19. Bxd5 {[%emt 0:13:55]} Qxd5 {[%emt 0:02:24]} 20. Nc7 {[%emt 0:00:44]} Qc4+ {[%emt 0:00:35]} 21. Kf2 {[%emt 0:00:18]} Rc8 {[%emt 0:08:03]} 22. Na8 {[%emt 0:12:24]} Bc3 {[%emt 0:10:41]} 23. Ra4 {[%emt 0:05:23]} Nb4 {[%emt 0:03:02]} 24. Nb6 {[%emt 0:03:36]} Nd3+ {[%emt 0:00:23]} 25. Kf1 {[%emt 0:02:11]} Bxa4 {[%emt 0:06:43]} 26. Qxa4 {[%emt 0:08:38]} Qxa4 {[%emt 0:00:57]} 27. Nxa4 {[%emt 0:00:04]} Nxc1 {[%emt 0:00:05]} 28. Kf2 {[%emt 0:00:50]} Nb3 {[%emt 0:01:46]} 29. Ke3 {[%emt 0:01:43]} Ba5 {[%emt 0:06:22]} 30. Rb1 {[%emt 0:02:32]} b5 {[%emt 0:00:37]} 31. Nb2 {[%emt 0:01:13]} Rc2 {[%emt 0:01:01]} 32. Nd1 {[%emt 0:02:00]} Nc1 {[%emt 0:05:28]} 33. Rxb5 {[%emt 0:02:00]} Re2+ {[%emt 0:00:11]} 34. Kf4 {[%emt 0:00:12]} Bc7+ {[%emt 0:00:16]} 35. Ne5 {[%emt 0:03:44]} f6 {[%emt 0:01:47]} 36. Kf3 {[%emt 0:00:54]} fxe5 {[%emt 0:01:43]} 37. Rc5 {[%emt 0:01:35]} e4+ {[%emt 0:00:57]} 38. Kg4 {[%emt 0:00:05]} Rxg2+ {[%emt 0:08:48]} 39. Kf5 {[%emt 0:00:05]} g6+ {[%emt 0:00:28]} 40. Kxe4 {[%emt 0:01:09]} Rg4+ {[%emt 0:00:58]} 41. Ke3 {[%emt 0:04:52]} Bf4+ {[%emt 0:05:47]} 42. Kf3 {[%emt 0:00:58]} Rh4 {[%emt 0:01:02]} 43. d5 {[%emt 0:02:56]} Nb3 {[%emt 0:08:38]} 44. Rc8+ {[%emt 0:02:33]} Kf7 {[%emt 0:00:34]} 45. h3 {[%emt 0:01:42]} Bd6 {[%emt 0:02:41]} 46. Nf2 {[%emt 0:01:23]} Nd4+ {[%emt 0:00:57]} 47. Ke3 {[%emt 0:01:07]} Nf5+ {[%emt 0:00:16]} 48. Kf3 {[%emt 0:00:53]} Rd4 {[%emt 0:02:19]} 49. Ne4 {[%emt 0:01:31]} Rd3+ {[%emt 0:01:47]} 50. Ke2 {[%emt 0:01:06]} Re3+ {[%emt 0:01:57]} 0-1

[Event "Groningen Festival 2019-B"]
[Site "Groningen"]
[Date "2019.12.28"]
[Round "7.4"]
[White "Noordenbos, Daan"]
[Black "Slagter, Ruben"]
[Result "0-1"]
[ECO "B36"]
[WhiteElo "2023"]
[BlackElo "2077"]
[Annotator "NA"]
[PlyCount "106"]
[EventDate "2019.12.15"]
[EventType "swiss"]
[EventCountry "NED"]
[SourceTitle "playchess.com"]
[Source "ChessBase"]
[SourceQuality "1"]
[TimeControl "40/5400+30:1800+30"]

1. e4 {[%emt 0:00:18]} c5 {[%emt 0:04:08]} 2. Nf3 {[%emt 0:00:30]} Nc6 {[%emt 0:00:30]} 3. d4 {[%emt 0:00:30]} cxd4 {[%emt 0:00:30]} 4. Nxd4 {[%emt 0:00:30]} g6 {[%emt 0:00:30]} 5. c4 {[%emt 0:00:30]} Nf6 {[%emt 0:00:30]} 6. Nc3 {[%emt 0:00:30]} Nxd4 {[%emt 0:00:30]} 7. Qxd4 {[%emt 0:00:30]} d6 {[%emt 0:00:30]} 8. Be3 {[%emt 0:00:30]} Bg7 {[%emt 0:00:30]} 9. h3 {[%emt 0:00:41]} O-O {[%emt 0:01:19]} 10. Qd2 {[%emt 0:00:19]} a5 {[%emt 0:02:18]} 11. Rd1 {[%emt 0:05:36]} a4 {[%emt 0:08:54]} 12. e5 {[%emt 0:15:33]} Ne8 {[%emt 0:03:37]} 13. Bf4 {[%emt 0:07:10]} Qa5 {[%emt 0:16:07]} 14. Nd5 {[%emt 0:05:17]} Qxd2+ {[%emt 0:03:39]} 15. Bxd2 {[%emt 0:01:21]} Bxe5 {[%emt 0:05:06]} 16. Nxe7+ {[%emt 0:00:31]} Kg7 {[%emt 0:00:25]} 17. Nxc8 {[%emt 0:01:06]} Rxc8 {[%emt 0:00:08]} 18. b3 {[%emt 0:00:13]} axb3 {[%emt 0:04:18]} 19. axb3 {[%emt 0:00:23]} Nc7 {[%emt 0:01:40]} 20. f4 {[%emt 0:04:06]} Bd4 {[%emt 0:03:08]} 21. Bb4 {[%emt 0:02:10]} Rfe8+ {[%emt 0:05:45]} 22. Be2 {[%emt 0:01:27]} Ne6 {[%emt 0:04:46]} 23. g3 {[%emt 0:14:55]} Bf6 {[%emt 0:08:11]} 24. Kf2 {[%emt 0:10:36]} Nd4 {[%emt 0:01:50]} 25. Rhe1 {[%emt 0:07:49]} Nc2 {[%emt 0:02:15]} 26. Bg4 {[%emt 0:02:15]} Nxb4 {[%emt 0:00:19]} 27. Bxc8 {[%emt 0:00:20]} Rxc8 {[%emt 0:00:07]} 28. Rxd6 {[%emt 0:01:56]} Ra8 {[%emt 0:01:00]} 29. Kf3 {[%emt 0:02:59]} Ra3 {[%emt 0:00:48]} 30. Rb1 {[%emt 0:00:30]} Nc6 {[%emt 0:02:32]} 31. Ke4 {[%emt 0:04:25]} Ra2 {[%emt 0:03:40]} 32. Rd7 {[%emt 0:02:08]} Re2+ {[%emt 0:06:48]} 33. Kf3 {[%emt 0:00:57]} Rc2 {[%emt 0:00:12]} 34. Ke4 {[%emt 0:02:23]} Re2+ {[%emt 0:02:46]} 35. Kf3 {[%emt 0:00:10]} Rc2 {[%emt 0:00:05]} 36. Ke4 {[%emt 0:00:03]} Nd8 {[%emt 0:02:18]} 37. Rd3 {[%emt 0:02:23]} Ne6 {[%emt 0:00:55]} 38. Kd5 {[%emt 0:03:54]} b5 {[%emt 0:00:26]} 39. cxb5 {[%emt 0:01:01]} Nc7+ {[%emt 0:01:36]} 40. Ke4 {[%emt 0:00:58]} Nxb5 {[%emt 0:00:09]} 41. Re1 {[%emt 0:00:44]} Nc3+ {[%emt 0:04:14]} 42. Kf3 {[%emt 0:01:10]} Rh2 {[%emt 0:04:47]} 43. h4 {[%emt 0:05:21]} h5 {[%emt 0:03:47]} 44. Re8 {[%emt 0:04:57]} Nb5 {[%emt 0:04:58]} 45. Re2 {[%emt 0:02:40]} Nd4+ {[%emt 0:01:53]} 46. Rxd4 {[%emt 0:01:19]} Rxe2 {[%emt 0:00:05]} 47. Rd3 {[%emt 0:00:45]} Rc2 {[%emt 0:00:22]} 48. f5 {[%emt 0:02:30]} Rc3 {[%emt 0:01:33]} 49. Rxc3 {[%emt 0:00:11]} Bxc3 {[%emt 0:00:05]} 50. fxg6 {[%emt 0:00:06]} fxg6 {[%emt 0:03:01]} 51. g4 {[%emt 0:00:01]} hxg4+ {[%emt 0:00:09]} 52. Kxg4 {[%emt 0:00:07]} Kh6 {[%emt 0:00:12]} 53. h5 {[%emt 0:00:10]} g5 {[%emt 0:00:04]} 0-1

[Event "Groningen Festival 2019-B"]
[Site "Groningen"]
[Date "2019.12.28"]
[Round "7.5"]
[White "Salihbegovic, Edim"]
[Black "Huizinga, Egbert"]
[Result "1-0"]
[ECO "C65"]
[WhiteElo "2011"]
[BlackElo "1705"]
[Annotator "NA"]
[PlyCount "75"]
[EventDate "2019.12.15"]
[EventType "swiss"]
[EventCountry "NED"]
[SourceTitle "playchess.com"]
[Source "ChessBase"]
[SourceQuality "1"]
[TimeControl "40/5400+30:1800+30"]

1. e4 {[%emt 0:06:31]} e5 {[%emt 0:00:48]} 2. Nf3 {[%emt 0:00:08]} Nc6 {[%emt 0:00:13]} 3. Bb5 {[%emt 0:00:09]} Nf6 {[%emt 0:00:12]} 4. d3 {[%emt 0:01:21]} Bc5 {[%emt 0:00:55]} 5. c3 {[%emt 0:01:34]} d6 {[%emt 0:04:44]} 6. Be3 {[%emt 0:06:45]} Bxe3 {[%emt 0:00:45]} 7. fxe3 {[%emt 0:00:08]} Qe7 {[%emt 0:07:14]} 8. Nbd2 {[%emt 0:05:37]} Bd7 {[%emt 0:01:12]} 9. Qe2 {[%emt 0:01:46]} O-O {[%emt 0:01:53]} 10. O-O {[%emt 0:02:42]} Ng4 {[%emt 0:05:38]} 11. h3 {[%emt 0:08:16]} Nh6 {[%emt 0:00:00]} 12. g4 {[%emt 0:05:07]} Kh8 {[%emt 0:00:05]} 13. Qg2 {[%emt 0:12:24]} f6 {[%emt 0:00:34]} 14. Rf2 {[%emt 0:04:09]} a6 {[%emt 0:06:21]} 15. Ba4 {[%emt 0:02:53]} b5 {[%emt 0:06:11]} 16. Bc2 {[%emt 0:01:55]} Nd8 {[%emt 0:01:50]} 17. Nh4 {[%emt 0:04:52]} g5 {[%emt 0:05:53]} 18. Nhf3 {[%emt 0:06:02]} Ne6 {[%emt 0:04:39]} 19. Nf1 {[%emt 0:02:46]} c6 {[%emt 0:02:02]} 20. Ng3 {[%emt 0:01:00]} Ng7 {[%emt 0:01:23]} 21. Nh2 {[%emt 0:01:02]} Be6 {[%emt 0:00:48]} 22. Bb3 {[%emt 0:00:45]} Bd7 {[%emt 0:07:03]} 23. Qf1 {[%emt 0:01:49]} a5 {[%emt 0:00:22]} 24. a3 {[%emt 0:00:53]} Be6 {[%emt 0:04:00]} 25. Qd1 {[%emt 0:02:06]} Ng8 {[%emt 0:02:41]} 26. Kg2 {[%emt 0:03:57]} h6 {[%emt 0:02:14]} 27. Qc2 {[%emt 0:00:27]} Qd7 {[%emt 0:06:00]} 28. Raf1 {[%emt 0:01:55]} a4 {[%emt 0:00:33]} 29. Bxe6 {[%emt 0:00:10]} Qxe6 {[%emt 0:00:11]} 30. Nf3 {[%emt 0:01:18]} Rfd8 {[%emt 0:00:19]} 31. Rd2 {[%emt 0:04:17]} Ne7 {[%emt 0:02:51]} 32. Rfd1 {[%emt 0:01:14]} Rac8 {[%emt 0:10:32]} 33. d4 {[%emt 0:01:33]} d5 {[%emt 0:05:50]} 34. dxe5 {[%emt 0:02:54]} fxe5 {[%emt 0:01:20]} 35. Nf5 {[%emt 0:00:35]} Ngxf5 {[%emt 0:03:29]} 36. exf5 {[%emt 0:00:07]} Qf6 {[%emt 0:00:37]} 37. e4 {[%emt 0:01:11]} Rf8 {[%emt 0:00:12]} 38. Qd3 {[%emt 0:08:26]} 1-0

[Event "Groningen Festival 2019-B"]
[Site "Groningen"]
[Date "2019.12.28"]
[Round "7.6"]
[White "Labruyere, Roger"]
[Black "Saber, Anas"]
[Result "1-0"]
[ECO "B03"]
[WhiteElo "1933"]
[BlackElo "2008"]
[Annotator "NA"]
[PlyCount "57"]
[EventDate "2019.12.15"]
[EventType "swiss"]
[EventCountry "NED"]
[SourceTitle "playchess.com"]
[Source "ChessBase"]
[SourceQuality "1"]
[TimeControl "40/5400+30:1800+30"]

1. e4 {[%emt 0:00:00]} Nf6 {[%emt 0:00:47]} 2. e5 {[%emt 0:00:51]} Nd5 {[%emt 0:00:02]} 3. d4 {[%emt 0:00:25]} d6 {[%emt 0:00:07]} 4. c4 {[%emt 0:02:12]} Nb6 {[%emt 0:00:02]} 5. exd6 {[%emt 0:02:05]} exd6 {[%emt 0:00:02]} 6. Nf3 {[%emt 0:01:16]} Be7 {[%emt 0:00:12]} 7. Be2 {[%emt 0:00:12]} O-O {[%emt 0:00:07]} 8. O-O {[%emt 0:00:07]} Bf5 {[%emt 0:01:26]} 9. Be3 {[%emt 0:06:03]} Nc6 {[%emt 0:00:55]} 10. Nc3 {[%emt 0:01:53]} Bf6 {[%emt 0:01:33]} 11. Qd2 {[%emt 0:06:59]} Bg4 {[%emt 0:03:57]} 12. b3 {[%emt 0:02:51]} Re8 {[%emt 0:00:54]} 13. h3 {[%emt 0:00:19]} Bf5 {[%emt 0:05:55]} 14. Rac1 {[%emt 0:05:21]} Qd7 {[%emt 0:07:51]} 15. d5 {[%emt 0:04:07]} Ne5 {[%emt 0:03:26]} 16. Nxe5 {[%emt 0:00:13]} Bxe5 {[%emt 0:02:33]} 17. f4 {[%emt 0:05:24]} Bf6 {[%emt 0:17:15]} 18. g4 {[%emt 0:05:35]} Bxc3 {[%emt 0:06:18]} 19. Rxc3 {[%emt 0:00:12]} Be4 {[%emt 0:00:16]} 20. f5 {[%emt 0:01:38]} h5 {[%emt 0:13:34]} 21. Bd4 {[%emt 0:05:09]} hxg4 {[%emt 0:02:59]} 22. hxg4 {[%emt 0:02:15]} Qe7 {[%emt 0:01:04]} 23. f6 {[%emt 0:00:33]} Qd8 {[%emt 0:00:36]} 24. Qg5 {[%emt 0:01:30]} Bg6 {[%emt 0:00:20]} 25. Bd3 {[%emt 0:00:49]} Nd7 {[%emt 0:04:32]} 26. Bxg6 {[%emt 0:00:22]} gxf6 {[%emt 0:00:02]} 27. Rxf6 {[%emt 0:02:33]} Nxf6 {[%emt 0:04:49]} 28. Bxf6 {[%emt 0:00:08]} Re5 {[%emt 0:00:26]} 29. Bf5+ {[%emt 0:00:24]} 1-0